[Event "FIDE Grand Swiss 2023"]
[Site "Villa Marina, Douglas, Isle of Man, Isle Of Man"]
[Date "2023.11.02"]
[Round "8.37"]
[White "Gupta, Abhijeet"]
[Black "Martirosyan, Haik M."]
[Result "1/2-1/2"]
[TimeControl "40/90 + 30 + 30s/move"]
[WhiteFideId "5010608"]
[BlackFideId "13306553"]
[WhiteElo "2609"]
[BlackElo "2696"]

1. d4 {[%clk 01:40:52]} {[%emt 00:00:07]} Nf6 {[%clk 01:40:52]} {[%emt
00:00:09]} 2. c4 {[%clk 01:41:08]} {[%emt 00:00:15]} e6 {[%clk 01:41:15]}
{[%emt 00:00:06]} 3. Nf3 {[%clk 01:41:26]} {[%emt 00:00:12]} d5 {[%clk
01:41:36]} {[%emt 00:00:09]} 4. Nc3 {[%clk 01:41:31]} {[%emt 00:00:25]} Nbd7
{[%clk 01:41:55]} {[%emt 00:00:11]} 5. cxd5 {[%clk 01:41:29]} {[%emt 00:00:32]}
exd5 {[%clk 01:42:16]} {[%emt 00:00:08]} 6. Qc2 {[%clk 01:41:43]} {[%emt
00:00:17]} Bb4 {[%clk 01:40:06]} {[%emt 00:02:41]} 7. Bf4 {[%clk 01:41:42]}
{[%emt 00:00:31]} Ne4 {[%clk 01:33:10]} {[%emt 00:07:25]} 8. g3 {[%clk
01:31:40]} {[%emt 00:10:32]} c6 {[%clk 01:26:59]} {[%emt 00:06:41]} 9. Bg2
{[%clk 01:31:56]} {[%emt 00:00:15]} Qa5 {[%clk 01:26:17]} {[%emt 00:01:12]} 10.
Bd2 {[%clk 01:30:25]} {[%emt 00:02:01]} Nxd2 {[%clk 01:24:22]} {[%emt
00:02:24]} 11. Nxd2 {[%clk 01:30:18]} {[%emt 00:00:36]} O-O {[%clk 01:23:10]}
{[%emt 00:01:42]} 12. O-O {[%clk 01:30:01]} {[%emt 00:00:48]} Qd8 {[%clk
01:21:53]} {[%emt 00:01:47]} 13. a3 {[%clk 01:29:41]} {[%emt 00:00:51]} Be7
{[%clk 01:21:02]} {[%emt 00:01:19]} 14. b4 {[%clk 01:29:54]} {[%emt 00:00:18]}
a6 {[%clk 01:15:33]} {[%emt 00:06:00]} 15. Nb3 {[%clk 01:24:43]} {[%emt
00:05:40]} Nf6 {[%clk 01:14:37]} {[%emt 00:01:26]} 16. Nc5 {[%clk 01:24:52]}
{[%emt 00:00:22]} g6 {[%clk 01:11:32]} {[%emt 00:03:34]} 17. Qb3 {[%clk
01:22:18]} {[%emt 00:03:04]} Rb8 {[%clk 01:09:42]} {[%emt 00:02:20]} 18. Rad1
{[%clk 01:20:22]} {[%emt 00:02:26]} Bf5 {[%clk 01:04:58]} {[%emt 00:05:13]} 19.
Rfe1 {[%clk 01:02:40]} {[%emt 00:18:13]} Re8 {[%clk 01:00:22]} {[%emt
00:05:06]} 20. e4 {[%clk 01:00:51]} {[%emt 00:02:19]} dxe4 {[%clk 00:58:37]}
{[%emt 00:02:15]} 21. N3xe4 {[%clk 01:01:10]} {[%emt 00:00:11]} Bxc5 {[%clk
00:48:23]} {[%emt 00:10:44]} 22. dxc5 {[%clk 00:43:24]} {[%emt 00:18:16]} Qe7
{[%clk 00:48:06]} {[%emt 00:00:48]} 23. Nxf6+ {[%clk 00:41:13]} {[%emt
00:02:41]} Qxf6 {[%clk 00:48:22]} {[%emt 00:00:13]} 24. Qf3 {[%clk 00:41:26]}
{[%emt 00:00:17]} Kg7 {[%clk 00:46:09]} {[%emt 00:02:42]} 25. h4 {[%clk
00:32:08]} {[%emt 00:09:49]} h5 {[%clk 00:43:47]} {[%emt 00:02:52]} 26. Qf4
{[%clk 00:27:28]} {[%emt 00:05:11]} Rbd8 {[%clk 00:29:12]} {[%emt 00:15:05]} 27.
Bf1 {[%clk 00:24:26]} {[%emt 00:03:32]} Re4 {[%clk 00:23:21]} {[%emt 00:06:20]}
28. Qc1 {[%clk 00:21:59]} {[%emt 00:02:57]} Rxe1 {[%clk 00:20:49]} {[%emt
00:03:02]} 29. Rxe1 {[%clk 00:22:25]} {[%emt 00:00:04]} Be6 {[%clk 00:15:55]}
{[%emt 00:05:24]} 30. Qe3 {[%clk 00:17:41]} {[%emt 00:05:14]} Rd4 {[%clk
00:11:12]} {[%emt 00:05:13]} 31. Bg2 {[%clk 00:16:23]} {[%emt 00:01:48]} Rd7
{[%clk 00:08:19]} {[%emt 00:03:23]} 32. Qc1 {[%clk 00:13:31]} {[%emt 00:03:21]}
Bg4 {[%clk 00:07:27]} {[%emt 00:01:22]} 33. Qe3 {[%clk 00:11:30]} {[%emt
00:02:32]} Bf5 {[%clk 00:06:50]} {[%emt 00:01:08]} 34. Bf1 {[%clk 00:11:38]}
{[%emt 00:00:21]} Be6 {[%clk 00:05:02]} {[%emt 00:02:18]} 35. Qc1 {[%clk
00:11:32]} {[%emt 00:00:37]} Qd4 {[%clk 00:04:53]} {[%emt 00:00:38]} 36. Bg2
{[%clk 00:11:14]} {[%emt 00:00:48]} Bf5 {[%clk 00:04:14]} {[%emt 00:01:09]} 37.
Bf3 {[%clk 00:10:46]} {[%emt 00:00:58]} Qf6 {[%clk 00:04:10]} {[%emt 00:00:34]}
38. Rd1 {[%clk 00:08:22]} {[%emt 00:02:54]} Re7 {[%clk 00:01:24]} {[%emt
00:03:16]} 39. Rd6 {[%clk 00:04:44]} {[%emt 00:04:08]} Qe5 {[%clk 00:01:18]}
{[%emt 00:00:36]} 40. Kg2 {[%clk 00:04:44]} {[%emt 00:00:29]} Be6 {[%clk
00:00:35]} {[%emt 00:01:14]} 41. Qd2 {[%clk 00:43:19]} {[%emt 00:11:55]} Re8
{[%clk 00:43:20]} {[%emt 00:07:45]} 42. a4 {[%clk 00:37:52]} {[%emt 00:05:57]}
a5 {[%clk 00:37:06]} {[%emt 00:06:44]} 43. bxa5 {[%clk 00:35:44]} {[%emt
00:02:39]} Bc4 {[%clk 00:33:29]} {[%emt 00:04:07]} 44. Qb4 {[%clk 00:26:52]}
{[%emt 00:09:21]} Ba6 {[%clk 00:33:12]} {[%emt 00:00:48]} 45. Rd1 {[%clk
00:26:37]} {[%emt 00:00:45]} Qf5 {[%clk 00:30:32]} {[%emt 00:03:10]} 46. Qc3+
{[%clk 00:26:05]} {[%emt 00:01:02]} Qf6 {[%clk 00:30:07]} {[%emt 00:00:55]} 47.
Qc2 {[%clk 00:23:34]} {[%emt 00:03:00]} Re5 {[%clk 00:29:55]} {[%emt 00:00:42]}
48. Rc1 {[%clk 00:21:59]} {[%emt 00:02:04]} Kh7 {[%clk 00:27:48]} {[%emt
00:02:38]} 49. Qc3 {[%clk 00:20:00]} {[%emt 00:02:29]} Qf5 {[%clk 00:27:23]}
{[%emt 00:00:55]} 50. Qd4 {[%clk 00:19:43]} {[%emt 00:00:47]} Re7 {[%clk
00:26:53]} {[%emt 00:01:00]} 51. Qd2 {[%clk 00:12:40]} {[%emt 00:07:33]} Rd7
{[%clk 00:25:40]} {[%emt 00:01:43]} 52. Qe1 {[%clk 00:11:56]} {[%emt 00:01:15]}
Rd4 {[%clk 00:25:01]} {[%emt 00:01:08]} 53. Qe7 {[%clk 00:10:44]} {[%emt
00:01:43]} Kg7 {[%clk 00:21:16]} {[%emt 00:04:15]} 54. Re1 {[%clk 00:02:34]}
{[%emt 00:08:40]} Rxa4 {[%clk 00:18:17]} {[%emt 00:03:28]} 55. Qd6 {[%clk
00:01:13]} {[%emt 00:01:50]} Ra3 {[%clk 00:17:57]} {[%emt 00:00:51]} 56. Be4
{[%clk 00:00:54]} {[%emt 00:00:49]} Qf6 {[%clk 00:18:12]} {[%emt 00:00:15]} 57.
Qd2 {[%clk 00:00:45]} {[%emt 00:00:39]} Qc3 {[%clk 00:16:46]} {[%emt 00:01:56]}
58. Qg5 {[%clk 00:00:47]} {[%emt 00:00:28]} Ra4 {[%clk 00:15:23]} {[%emt
00:01:54]} 59. Rc1 {[%clk 00:00:42]} {[%emt 00:00:35]} Qf6 {[%clk 00:11:03]}
{[%emt 00:04:49]} 60. Qxf6+ {[%clk 00:00:40]} {[%emt 00:00:33]} Kxf6 {[%clk
00:11:32]} {[%emt 00:00:01]} 61. Kf3 {[%clk 00:13:13]} {[%emt 00:02:56]} Rxa5
{[%clk 00:23:02]} {[%emt 00:04:00]} 62. Rc3 {[%clk 00:12:19]} {[%emt 00:01:24]}
Ke6 {[%clk 00:18:32]} {[%emt 00:05:00]} 63. Ke3 {[%clk 00:12:10]} {[%emt
00:00:39]} Ra4 {[%clk 00:17:38]} {[%emt 00:01:24]} 64. Bc2 {[%clk 00:11:57]}
{[%emt 00:00:43]} Rb4 {[%clk 00:17:38]} {[%emt 00:00:31]} 65. Bb3+ {[%clk
00:11:56]} {[%emt 00:00:30]} Ke7 {[%clk 00:15:56]} {[%emt 00:02:12]} 66. Kd2
{[%clk 00:11:43]} {[%emt 00:00:43]} Rd4+ {[%clk 00:15:28]} {[%emt 00:00:57]} 67.
Kc2 {[%clk 00:11:55]} {[%emt 00:00:18]} Kf8 {[%clk 00:13:10]} {[%emt 00:02:49]}
68. Rf3 {[%clk 00:11:40]} {[%emt 00:00:44]} Rd7 {[%clk 00:13:23]} {[%emt
00:00:18]} 69. Kc3 {[%clk 00:11:57]} {[%emt 00:00:13]} Kg7 {[%clk 00:12:45]}
{[%emt 00:01:08]} 70. Re3 {[%clk 00:12:02]} {[%emt 00:00:24]} Bf1 {[%clk
00:12:17]} {[%emt 00:00:59]} 71. f3 {[%clk 00:07:52]} {[%emt 00:04:40]} Kf6
{[%clk 00:08:13]} {[%emt 00:04:34]} 72. g4 {[%clk 00:07:45]} {[%emt 00:00:37]}
Bh3 {[%clk 00:07:29]} {[%emt 00:01:14]} 73. Re4 {[%clk 00:06:23]} {[%emt
00:01:53]} hxg4 {[%clk 00:07:15]} {[%emt 00:00:44]} 74. fxg4 {[%clk 00:06:18]}
{[%emt 00:00:34]} g5 {[%clk 00:07:40]} {[%emt 00:00:04]} 75. h5 {[%clk
00:05:27]} {[%emt 00:01:21]} Kg7 {[%clk 00:07:48]} {[%emt 00:00:22]} 76. Bc4
{[%clk 00:04:37]} {[%emt 00:01:21]} Kh6 {[%clk 00:07:27]} {[%emt 00:00:51]} 77.
Be2 {[%clk 00:04:10]} {[%emt 00:00:56]} Bg2 {[%clk 00:06:49]} {[%emt 00:01:09]}
78. Re8 {[%clk 00:03:37]} {[%emt 00:01:03]} Bd5 {[%clk 00:07:17]} {[%emt
00:00:03]} 79. Re5 {[%clk 00:03:27]} {[%emt 00:00:39]} Be6 {[%clk 00:07:29]}
{[%emt 00:00:18]} 80. Bf3 {[%clk 00:02:49]} {[%emt 00:01:08]} Rd8 {[%clk
00:07:31]} {[%emt 00:00:28]} 81. Be2 {[%clk 00:02:57]} {[%emt 00:00:22]} Ra8
{[%clk 00:07:28]} {[%emt 00:00:34]} 82. Re4 {[%clk 00:03:06]} {[%emt 00:00:19]}
Ra2 {[%clk 00:07:24]} {[%emt 00:00:35]} 83. Kd4 {[%clk 00:03:02]} {[%emt
00:00:34]} Kg7 {[%clk 00:06:34]} {[%emt 00:01:20]} 84. Kc3 {[%clk 00:02:57]}
{[%emt 00:00:35]} Bd5 {[%clk 00:06:30]} {[%emt 00:00:34]} 85. Re5 {[%clk
00:02:27]} {[%emt 00:01:00]} Be6 {[%clk 00:06:22]} {[%emt 00:00:38]} 86. Re4
{[%clk 00:02:05]} {[%emt 00:00:52]} Kf6 {[%clk 00:06:33]} {[%emt 00:00:19]} 87.
Bd3 {[%clk 00:01:40]} {[%emt 00:00:55]} Ra3+ {[%clk 00:06:27]} {[%emt
00:00:36]} 88. Kd2 {[%clk 00:01:43]} {[%emt 00:00:27]} Kg7 {[%clk 00:06:21]}
{[%emt 00:00:37]} 89. Re5 {[%clk 00:01:45]} {[%emt 00:00:27]} Kh6 {[%clk
00:06:30]} {[%emt 00:00:21]} 90. Bf5 {[%clk 00:02:00]} {[%emt 00:00:15]} Bd5
{[%clk 00:06:20]} {[%emt 00:00:40]} 91. Re8 {[%clk 00:01:47]} {[%emt 00:00:42]}
Kg7 {[%clk 00:06:39]} {[%emt 00:00:12]} 92. Rd8 {[%clk 00:01:55]} {[%emt
00:00:22]} Rh3 {[%clk 00:04:24]} {[%emt 00:02:45]} 93. Rd6 {[%clk 00:02:04]}
{[%emt 00:00:21]} Bf3 {[%clk 00:04:29]} {[%emt 00:00:25]} 94. Rd7 {[%clk
00:01:32]} {[%emt 00:01:02]} Kf6 {[%clk 00:04:10]} {[%emt 00:00:49]} 95. Rxb7
{[%clk 00:01:30]} {[%emt 00:00:32]} Bd5 {[%clk 00:04:39]} {[%emt 00:00:01]} 96.
Rb6 {[%clk 00:00:54]} {[%emt 00:01:06]} Ke5 {[%clk 00:04:39]} {[%emt 00:00:30]}
97. Rb4 {[%clk 00:01:15]} {[%emt 00:00:10]} Bf3 {[%clk 00:04:00]} {[%emt
00:01:08]} 98. Rb3 {[%clk 00:00:45]} {[%emt 00:01:00]} Kf4 {[%clk 00:03:33]}
{[%emt 00:00:57]} 99. Rb4+ {[%clk 00:00:56]} {[%emt 00:00:19]} Kg3 {[%clk
00:03:40]} {[%emt 00:00:24]} 100. Rd4 {[%clk 00:01:14]} {[%emt 00:00:12]} Kf2
{[%clk 00:03:07]} {[%emt 00:01:02]} 101. Rd7 {[%clk 00:01:34]} {[%emt
00:00:10]} Kg3 {[%clk 00:03:03]} {[%emt 00:00:34]} 102. Rd4 {[%clk 00:01:48]}
{[%emt 00:00:16]} Kf2 {[%clk 00:03:32]} 103. Rd6 {[%clk 00:01:49]} {[%emt
00:00:29]} Kg3 {[%clk 00:03:27]} {[%emt 00:00:35]} 104. Rd3 {[%clk 00:01:43]}
{[%emt 00:00:36]} Kf4 {[%clk 00:03:01]} {[%emt 00:00:57]} 105. Kc3 {[%clk
00:01:47]} {[%emt 00:00:25]} Rh4 {[%clk 00:03:11]} {[%emt 00:00:21]} 106. Rd4+
{[%clk 00:01:21]} {[%emt 00:00:55]} Ke5 {[%clk 00:03:39]} 107. Ra4 {[%clk
00:01:06]} {[%emt 00:00:46]} Kd5 {[%clk 00:03:23]} {[%emt 00:00:47]} 108. Ra7
{[%clk 00:01:01]} {[%emt 00:00:34]} f6 {[%clk 00:01:44]} {[%emt 00:02:10]} 109.
Rf7 {[%clk 00:01:02]} {[%emt 00:00:28]} Bxg4 {[%clk 00:01:18]} {[%emt
00:00:56]} 110. Bxg4 {[%clk 00:01:25]} {[%emt 00:00:07]} Rxg4 {[%clk 00:01:45]}
{[%emt 00:00:03]} 111. Rxf6 {[%clk 00:01:50]} {[%emt 00:00:05]} Kxc5 {[%clk
00:01:58]} {[%emt 00:00:17]} 112. Rf5+ {[%clk 00:01:54]} {[%emt 00:00:27]} Kd6
{[%clk 00:02:18]} {[%emt 00:00:10]} 113. h6 {[%clk 00:02:20]} {[%emt 00:00:04]}
Ke6 {[%clk 00:02:16]} {[%emt 00:00:32]} 114. Rc5 {[%clk 00:02:30]} {[%emt
00:00:19]} Rh4 {[%clk 00:02:12]} {[%emt 00:00:34]} 115. Rxg5 {[%clk 00:02:38]}
{[%emt 00:00:22]} 1/2-1/2

[Event "FIDE Grand Swiss 2023"]
[Site "Villa Marina, Douglas, Isle of Man, Isle Of Man"]
[Date "2023.11.02"]
[Round "8.38"]
[White "Mareco, Sandro"]
[Black "Xiong, Jeffery"]
[Result "0-1"]
[TimeControl "40/90 + 30 + 30s/move"]
[WhiteFideId "112275"]
[BlackFideId "2047640"]
[WhiteElo "2606"]
[BlackElo "2693"]

1. d4 {[%clk 01:40:58]} d5 {[%clk 01:40:57]} {[%emt 00:00:03]} 2. c4 {[%clk
01:41:24]} {[%emt 00:00:05]} dxc4 {[%clk 01:41:11]} {[%emt 00:00:16]} 3. Nf3
{[%clk 01:41:50]} {[%emt 00:00:04]} a6 {[%clk 01:41:04]} {[%emt 00:00:37]} 4.
e3 {[%clk 01:41:59]} {[%emt 00:00:21]} Nf6 {[%clk 01:41:30]} {[%emt 00:00:04]}
5. Bxc4 {[%clk 01:42:23]} {[%emt 00:00:06]} e6 {[%clk 01:41:15]} {[%emt
00:00:45]} 6. O-O {[%clk 01:42:47]} {[%emt 00:00:06]} c5 {[%clk 01:41:40]}
{[%emt 00:00:04]} 7. b3 {[%clk 01:43:12]} {[%emt 00:00:06]} Nbd7 {[%clk
01:39:17]} {[%emt 00:02:53]} 8. Bb2 {[%clk 01:42:40]} {[%emt 00:01:02]} Be7
{[%clk 01:39:43]} {[%emt 00:00:03]} 9. Be2 {[%clk 01:37:38]} {[%emt 00:05:33]}
O-O {[%clk 01:38:15]} {[%emt 00:01:57]} 10. Nbd2 {[%clk 01:37:05]} {[%emt
00:01:03]} b6 {[%clk 01:34:14]} {[%emt 00:04:31]} 11. Ne5 {[%clk 01:28:37]}
{[%emt 00:08:59]} Bb7 {[%clk 01:19:33]} {[%emt 00:15:10]} 12. Bf3 {[%clk
01:22:01]} {[%emt 00:07:07]} Qc7 {[%clk 01:16:32]} {[%emt 00:03:29]} 13. Rc1
{[%clk 01:16:53]} {[%emt 00:05:39]} Nxe5 {[%clk 01:03:00]} {[%emt 00:14:03]} 14.
Bxb7 {[%clk 01:10:55]} {[%emt 00:06:28]} Neg4 {[%clk 01:01:47]} {[%emt
00:01:42]} 0-1

[Event "FIDE Grand Swiss 2023"]
[Site "Villa Marina, Douglas, Isle of Man, Isle Of Man"]
[Date "2023.11.02"]
[Round "8.39"]
[White "Navara, David"]
[Black "Nguyen, Thai Dai Van"]
[Result "1-0"]
[TimeControl "40/90 + 30 + 30s/move"]
[WhiteFideId "309095"]
[BlackFideId "358878"]
[WhiteElo "2689"]
[BlackElo "2618"]

1. Nf3 {[%clk 01:40:58]} {[%emt 00:00:01]} Nf6 {[%clk 01:40:10]} {[%emt
00:00:50]} 2. g3 {[%clk 01:41:22]} {[%emt 00:00:07]} d5 {[%clk 01:40:15]}
{[%emt 00:00:24]} 3. Bg2 {[%clk 01:41:47]} {[%emt 00:00:06]} e6 {[%clk
01:40:40]} {[%emt 00:00:04]} 4. O-O {[%clk 01:42:09]} {[%emt 00:00:08]} Be7
{[%clk 01:41:03]} {[%emt 00:00:07]} 5. d3 {[%clk 01:42:29]} {[%emt 00:00:11]}
O-O {[%clk 01:41:22]} {[%emt 00:00:10]} 6. Bf4 {[%clk 01:42:50]} {[%emt
00:00:09]} Nc6 {[%clk 01:35:24]} {[%emt 00:06:29]} 7. a3 {[%clk 01:43:01]}
{[%emt 00:00:18]} Bd6 {[%clk 01:24:00]} {[%emt 00:11:54]} 8. Bg5 {[%clk
01:43:22]} {[%emt 00:00:08]} e5 {[%clk 01:17:52]} {[%emt 00:06:40]} 9. c4
{[%clk 01:36:10]} {[%emt 00:07:41]} dxc4 {[%clk 01:11:45]} {[%emt 00:06:37]} 10.
dxc4 {[%clk 01:35:55]} {[%emt 00:00:45]} Be6 {[%clk 01:07:34]} {[%emt
00:04:41]} 11. Nfd2 {[%clk 01:24:07]} {[%emt 00:12:18]} Be7 {[%clk 01:05:36]}
{[%emt 00:02:28]} 12. Nc3 {[%clk 01:21:40]} {[%emt 00:02:57]} Ng4 {[%clk
00:55:47]} {[%emt 00:10:20]} 13. Bxe7 {[%clk 01:21:10]} {[%emt 00:00:59]} Nxe7
{[%clk 00:56:08]} {[%emt 00:00:10]} 14. Nb3 {[%clk 00:59:28]} {[%emt 00:22:11]}
c6 {[%clk 00:48:32]} {[%emt 00:08:07]} 15. Nc5 {[%clk 00:58:59]} {[%emt
00:00:58]} Bc8 {[%clk 00:47:15]} {[%emt 00:01:48]} 16. Qxd8 {[%clk 00:58:25]}
{[%emt 00:01:03]} Rxd8 {[%clk 00:47:43]} {[%emt 00:00:02]} 17. Rfd1 {[%clk
00:58:19]} {[%emt 00:00:36]} Rxd1+ {[%clk 00:32:33]} {[%emt 00:15:41]} 18. Rxd1
{[%clk 00:58:20]} {[%emt 00:00:28]} f5 {[%clk 00:32:59]} {[%emt 00:00:05]} 19.
Nxb7 {[%clk 00:55:37]} {[%emt 00:03:13]} Bxb7 {[%clk 00:24:49]} {[%emt
00:08:40]} 20. Rd7 {[%clk 00:55:49]} {[%emt 00:00:16]} Kf8 {[%clk 00:25:03]}
{[%emt 00:00:18]} 21. Rxb7 {[%clk 00:55:48]} {[%emt 00:00:30]} e4 {[%clk
00:25:26]} {[%emt 00:00:07]} 22. f3 {[%clk 00:42:47]} {[%emt 00:13:31]} exf3
{[%clk 00:25:52]} {[%emt 00:00:05]} 23. Bxf3 {[%clk 00:42:53]} {[%emt
00:00:22]} Ne5 {[%clk 00:26:18]} {[%emt 00:00:06]} 24. b3 {[%clk 00:41:36]}
{[%emt 00:01:47]} Ke8 {[%clk 00:20:05]} {[%emt 00:06:42]} 25. Na4 {[%clk
00:40:12]} {[%emt 00:01:54]} Nd7 {[%clk 00:20:22]} {[%emt 00:00:14]} 26. Rc7
{[%clk 00:38:24]} {[%emt 00:02:18]} Rb8 {[%clk 00:20:48]} {[%emt 00:00:04]} 27.
b4 {[%clk 00:38:37]} {[%emt 00:00:16]} a5 {[%clk 00:21:17]} {[%emt 00:00:02]}
28. bxa5 {[%clk 00:38:19]} {[%emt 00:00:47]} Kd8 {[%clk 00:13:11]} {[%emt
00:08:36]} 29. Ra7 {[%clk 00:38:30]} {[%emt 00:00:19]} Nc8 {[%clk 00:10:39]}
{[%emt 00:03:03]} 30. Ra6 {[%clk 00:38:47]} {[%emt 00:00:12]} Rb3 {[%clk
00:05:19]} {[%emt 00:05:50]} 31. Ra8 {[%clk 00:35:48]} {[%emt 00:03:29]} c5
{[%clk 00:01:15]} {[%emt 00:04:35]} 32. a6 {[%clk 00:32:15]} {[%emt 00:04:02]}
Rxa3 {[%clk 00:01:43]} {[%emt 00:00:03]} 33. Bc6 {[%clk 00:32:29]} {[%emt
00:00:16]} Kc7 {[%clk 00:00:55]} {[%emt 00:01:18]} 34. Rxc8+ {[%clk 00:32:38]}
{[%emt 00:00:20]} Kxc8 {[%clk 00:01:20]} {[%emt 00:00:04]} 35. a7 {[%clk
00:32:59]} {[%emt 00:00:10]} 1-0

[Event "FIDE Grand Swiss 2023"]
[Site "Villa Marina, Douglas, Isle of Man, Isle Of Man"]
[Date "2023.11.02"]
[Round "8.40"]
[White "Tabatabaei, M. Amin"]
[Black "Karthikeyan, Murali"]
[Result "1-0"]
[TimeControl "40/90 + 30 + 30s/move"]
[WhiteFideId "12521213"]
[BlackFideId "5074452"]
[WhiteElo "2685"]
[BlackElo "2611"]

1. e4 {[%clk 01:40:20]} {[%emt 00:00:39]} e5 {[%clk 01:40:39]} {[%emt
00:00:21]} 2. Nf3 {[%clk 01:39:30]} {[%emt 00:01:20]} Nc6 {[%clk 01:41:02]}
{[%emt 00:00:07]} 3. Bc4 {[%clk 01:37:02]} {[%emt 00:02:58]} Nf6 {[%clk
01:41:24]} {[%emt 00:00:07]} 4. d3 {[%clk 01:37:12]} {[%emt 00:00:21]} Bc5
{[%clk 01:41:45]} {[%emt 00:00:10]} 5. O-O {[%clk 01:37:08]} {[%emt 00:00:33]}
O-O {[%clk 01:42:04]} {[%emt 00:00:11]} 6. h3 {[%clk 01:36:18]} {[%emt
00:01:18]} d5 {[%clk 01:42:17]} {[%emt 00:00:19]} 7. exd5 {[%clk 01:36:37]}
{[%emt 00:00:11]} Nxd5 {[%clk 01:42:45]} {[%emt 00:00:03]} 8. Nbd2 {[%clk
01:36:10]} {[%emt 00:00:56]} f6 {[%clk 01:40:13]} {[%emt 00:03:02]} 9. d4
{[%clk 01:31:12]} {[%emt 00:05:28]} Nxd4 {[%clk 01:39:54]} {[%emt 00:00:49]} 10.
Nb3 {[%clk 01:28:36]} {[%emt 00:03:06]} Bb6 {[%clk 01:40:05]} {[%emt 00:00:19]}
11. Nfxd4 {[%clk 01:28:15]} {[%emt 00:00:51]} exd4 {[%clk 01:40:28]} {[%emt
00:00:07]} 12. Nxd4 {[%clk 01:22:00]} {[%emt 00:06:45]} Kh8 {[%clk 01:40:42]}
{[%emt 00:00:15]} 13. c3 {[%clk 01:20:12]} {[%emt 00:02:18]} c6 {[%clk
01:36:29]} {[%emt 00:04:44]} 14. Re1 {[%clk 01:19:03]} {[%emt 00:01:39]} Qd6
{[%clk 01:32:59]} {[%emt 00:04:00]} 15. Bd3 {[%clk 01:09:11]} {[%emt 00:10:21]}
Bc7 {[%clk 01:11:06]} {[%emt 00:22:23]} 16. g3 {[%clk 01:08:26]} {[%emt
00:01:15]} f5 {[%clk 01:11:10]} {[%emt 00:00:26]} 17. Qh5 {[%clk 01:03:51]}
{[%emt 00:05:06]} Bd7 {[%clk 01:07:13]} {[%emt 00:04:27]} 18. Bg5 {[%clk
01:03:07]} {[%emt 00:01:13]} c5 {[%clk 00:57:36]} {[%emt 00:10:07]} 19. Nb5
{[%clk 00:49:53]} {[%emt 00:13:45]} Bxb5 {[%clk 00:57:18]} {[%emt 00:00:47]} 20.
Bxb5 {[%clk 00:50:15]} {[%emt 00:00:08]} f4 {[%clk 00:57:05]} {[%emt 00:00:44]}
21. Bh4 {[%clk 00:45:32]} {[%emt 00:05:13]} fxg3 {[%clk 00:51:44]} {[%emt
00:05:51]} 22. Bxg3 {[%clk 00:44:07]} {[%emt 00:01:55]} Nf4 {[%clk 00:51:21]}
{[%emt 00:00:53]} 23. Qg4 {[%clk 00:42:27]} {[%emt 00:02:09]} Qd5 {[%clk
00:43:02]} {[%emt 00:08:50]} 24. Bf1 {[%clk 00:41:23]} {[%emt 00:01:33]} h5
{[%clk 00:42:25]} {[%emt 00:01:08]} 25. Qd1 {[%clk 00:41:45]} {[%emt 00:00:08]}
Qg5 {[%clk 00:35:15]} {[%emt 00:07:39]} 26. h4 {[%clk 00:39:56]} {[%emt
00:02:19]} Qg6 {[%clk 00:30:58]} {[%emt 00:04:47]} 27. Qd7 {[%clk 00:32:10]}
{[%emt 00:08:16]} Rf7 {[%clk 00:24:04]} {[%emt 00:07:24]} 28. Re7 {[%clk
00:32:13]} {[%emt 00:00:27]} Rxe7 {[%clk 00:20:24]} {[%emt 00:04:10]} 29. Qxe7
{[%clk 00:32:42]} {[%emt 00:00:02]} Ne6 {[%clk 00:17:56]} {[%emt 00:02:57]} 30.
Kh1 {[%clk 00:29:55]} {[%emt 00:03:17]} Bxg3 {[%clk 00:15:04]} {[%emt
00:03:23]} 31. fxg3 {[%clk 00:30:12]} {[%emt 00:00:14]} Rf8 {[%clk 00:14:51]}
{[%emt 00:00:42]} 32. Bh3 {[%clk 00:13:46]} {[%emt 00:16:56]} Rf6 {[%clk
00:11:24]} {[%emt 00:03:57]} 33. Rg1 {[%clk 00:14:07]} {[%emt 00:00:09]} Qe4+
{[%clk 00:08:28]} {[%emt 00:03:26]} 34. Bg2 {[%clk 00:10:55]} {[%emt 00:03:42]}
Qg4 {[%clk 00:08:34]} {[%emt 00:00:24]} 35. Rf1 {[%clk 00:10:21]} {[%emt
00:01:04]} Rxf1+ {[%clk 00:05:11]} {[%emt 00:03:53]} 36. Bxf1 {[%clk 00:10:48]}
{[%emt 00:00:03]} Qf5 {[%clk 00:02:01]} {[%emt 00:03:40]} 37. Bg2 {[%clk
00:09:44]} {[%emt 00:01:34]} g5 {[%clk 00:02:13]} {[%emt 00:00:18]} 38. hxg5
{[%clk 00:07:45]} {[%emt 00:02:28]} Nxg5 {[%clk 00:02:26]} {[%emt 00:00:18]} 39.
Qxb7 {[%clk 00:07:12]} {[%emt 00:01:04]} a5 {[%clk 00:01:38]} {[%emt 00:01:18]}
40. Qd5 {[%clk 00:03:33]} {[%emt 00:04:09]} Qxd5 {[%clk 00:01:09]} {[%emt
00:00:58]} 41. Bxd5 {[%clk 00:03:57]} {[%emt 00:00:06]} Kg7 {[%clk 00:01:32]}
{[%emt 00:00:07]} 42. Kg2 {[%clk 00:04:23]} {[%emt 00:00:04]} Kf6 {[%clk
00:50:15]} {[%emt 00:01:47]} 43. Kf2 {[%clk 00:44:08]} {[%emt 00:10:44]} Ke5
{[%clk 00:40:44]} {[%emt 00:10:02]} 44. Bf3 {[%clk 00:44:17]} {[%emt 00:00:21]}
a4 {[%clk 00:38:47]} {[%emt 00:02:27]} 45. Bxh5 {[%clk 00:42:00]} {[%emt
00:02:47]} Ne4+ {[%clk 00:38:43]} {[%emt 00:00:34]} 46. Kg2 {[%clk 00:41:26]}
{[%emt 00:01:01]} a3 {[%clk 00:38:13]} {[%emt 00:01:03]} 47. bxa3 {[%clk
00:41:41]} {[%emt 00:00:15]} Nxc3 {[%clk 00:38:41]} {[%emt 00:00:02]} 48. Bf7
{[%clk 00:42:02]} {[%emt 00:00:10]} Kd4 {[%clk 00:37:18]} {[%emt 00:01:52]} 49.
g4 {[%clk 00:41:44]} {[%emt 00:00:47]} Ne4 {[%clk 00:37:42]} {[%emt 00:00:07]}
50. Bb3 {[%clk 00:28:56]} {[%emt 00:13:18]} Kd3 {[%clk 00:31:55]} {[%emt
00:06:17]} 51. Kf3 {[%clk 00:22:58]} {[%emt 00:06:28]} Nd2 {[%clk 00:31:13]}
{[%emt 00:01:11]} 52. Kf4 {[%clk 00:23:26]} {[%emt 00:00:02]} c4 {[%clk
00:31:37]} {[%emt 00:00:06]} 53. Bd1 {[%clk 00:18:07]} {[%emt 00:05:48]} Ne4
{[%clk 00:25:07]} {[%emt 00:07:02]} 54. g5 {[%clk 00:17:35]} {[%emt 00:01:02]}
c3 {[%clk 00:24:56]} {[%emt 00:00:41]} 55. g6 {[%clk 00:17:30]} {[%emt
00:00:34]} Nc5 {[%clk 00:25:10]} {[%emt 00:00:16]} 56. Kf5 {[%clk 00:17:14]}
1-0